fUSD/lending_fUSD_20240617
["ID","MTS","AMOUNT","RATE_DAILY","PERIOD"]
[329738659,1718638246719,-487.38920179,0.00026328,2]
[329738661,1718638246744,-173.93628071,0.00026328,2]
[329738664,1718638246784,-2221.0968,0.00026329,2]
[329738666,1718638246817,-12531.3758,0.00026329,2]
[329738669,1718638246838,-2050.621,0.00026329,2]
[329738671,1718638246881,-176405.98,0.00026329,2]
[329738674,1718638246913,-53048.39379231,0.00026329,2]
[329738677,1718638246934,-2955.22036203,0.00026329,2]
[329738679,1718638246949,-272.01907789,0.00026329,2]
[329738750,1718638248265,-1366.89726777,0.00026329,2]
[329738752,1718638248280,-217.58,0.00026329,2]
[329738754,1718638248293,-3646.73498436,0.00026329,2]
[329738756,1718638248309,-5732.17223282,0.00026329,2]
[329738758,1718638248321,-936.32776718,0.00026329,2]
[329738803,1718638249064,-137.10253282,0.00026329,2]
[329738805,1718638249092,-371.1843428,0.00026329,2]
[329738807,1718638249116,-128.8156572,0.00026329,2]
[329738810,1718638249145,-50732.33537671,0.00026379,2]
[329738813,1718638249400,-498.0,0.000264,10]
[329738815,1718638249427,-291.0,0.000264,2]
[329738817,1718638249441,-150.0,0.000264,5]
[329738819,1718638249457,-150.0,0.000264,5]
[329738821,1718638249476,-4617.77145204,0.00026403,2]
[329738822,1718638249490,-152.51,0.00026419,2]
[329738824,1718638249507,-150.48,0.00026422,2]
[329738825,1718638249533,-6798.61652103,0.00026423,2]
[329738826,1718638249546,-285.86312721,0.00026427,2]
[329738827,1718638249563,-3057.99278899,0.00026427,2]
[329738828,1718638249582,-2370.8826794,0.00026427,2]
[329738829,1718638249595,-22605.13368472,0.00026427,5]
[329738830,1718638249608,-646.04365935,0.00026427,2]
[329738831,1718638249621,-1120.28198585,0.00026427,2]
[329738832,1718638249637,-155.26088297,0.00026427,2]
[329738833,1718638249686,-3103.23413009,0.00026427,2]
[329738834,1718638249732,-5439.26274001,0.00026427,7]
[329738835,1718638249762,-7543.72254498,0.00026427,2]
[329738836,1718638249777,-7430.98544517,0.00026427,2]
[329738837,1718638249790,-6806.05267092,0.00026427,2]
[329738838,1718638249806,-162.99510184,0.00026427,2]
[329738839,1718638249825,-500.0,0.00026427,2]
[329738841,1718638249845,-7561.97268661,0.00026427,2]
[329738843,1718638249880,-699.0,0.00026428,2]
[329738844,1718638249921,-1444.36818836,0.00026428,2]
[329738845,1718638249935,-209.23301289,0.00026428,2]
[329738846,1718638249946,-516.77351,0.00026428,2]
[329738847,1718638249969,-2848.91351422,0.00026428,4]
[329738848,1718638249994,-1157.10933492,0.00026428,4]
[329738849,1718638250021,-468.19811048,0.00026428,4]
[329738850,1718638250036,-258.49966895,0.00026428,4]
[329738853,1718638250059,-1855.94871407,0.00026428,4]
[329738855,1718638250084,-2688.64513804,0.00026428,4]
[329738856,1718638250105,-293.33957425,0.00026428,4]
[329738857,1718638250119,-394.32513033,0.00026428,4]
[329738858,1718638250141,-5891.59367564,0.00026428,4]
[329738859,1718638250163,-176.4017231,0.00026429,2]
[329738860,1718638250179,-220.87168488,0.00026429,2]
[329738861,1718638250196,-14232.87183412,0.00026429,13]
[329738862,1718638250799,-338.97511584,0.00017243,2]
[329738863,1718638250827,-330598.63524889,0.00026429,13]
[329738864,1718638250838,-140276.06466532,0.00026429,5]
[329738865,1718638250865,-517.3092,0.00026429,5]
[329738866,1718638252724,-169.75322856,0.00026329,2]
[329738867,1718638252773,-142026.14014199,0.00026429,5]
[329738868,1718638254533,-532.14539917,0.00026427,2]
[329738869,1718638254548,-2026.19877689,0.00026429,5]
[329738870,1718638254564,-1222.58142477,0.00026429,5]
[329738871,1718638254587,-2726.87317608,0.00026429,5]
[329738872,1718638254608,-1418.77048282,0.00026429,5]
[329738873,1718638255170,-898.99522388,0.00026429,5]
[329738902,1718638754233,-338.97511584,0.00013783,2]
[329738903,1718638754312,-155.0,0.00013997,2]
[329738904,1718638754352,-291.461117,0.00013998,2]
[329738905,1718638754404,-2701.17062553,0.00013999,2]
[329738906,1718638754458,-300.0,0.00013999,2]
[329738907,1718638754523,-150.0,0.00013999,2]
[329738908,1718638754587,-1329063.39314163,0.00014,2]
[329738909,1718638865132,161.66,0.00021896,30]
[329738914,1718639251259,-368.391672,0.0001392,2]
[329738915,1718639251281,-172.31723391,0.0001399,2]
[329738916,1718639251311,-89.29109409,0.00014,2]
[329738924,1718639406479,161.66,0.00021589,30]
[329738926,1718639432526,-767.67,0.0001399,3]
[329738928,1718639432535,-8814.12288418,0.00014,2]
[329738930,1718639432547,-3967.40597384,0.00014,2]
[329738932,1718639432560,-7126.59179235,0.00014,2]
[329738934,1718639432572,-233986.68776612,0.00014,2]
[329738935,1718639432584,-615.77052,0.00014,2]
[329738936,1718639432597,-1728.0087192,0.00014,2]
[329738937,1718639432610,-263.47322908,0.00014,2]
[329738941,1718639435437,-8736.9780181,0.00014,2]
[329738942,1718639435448,-3528.09959666,0.00014,2]
[329738943,1718639435459,-764.60626949,0.00014,2]
[329738944,1718639435471,-359.63841064,0.00014,2]
[329738945,1718639435482,-565.2208109,0.00014,2]
[329738946,1718639435495,-521.44331218,0.00014,2]
[329738985,1718639438651,-800.0,0.00014,2]
[329738986,1718639438664,-463094.07607987,0.00014,2]
[329738988,1718639438677,-864.95555468,0.00014,2]
[329738991,1718639438689,-250.45581864,0.00014,2]
[329738993,1718639438704,-442.25,0.00014,2]
[329738995,1718639438716,-44293.04529455,0.00014,2]
[329738997,1718639438729,-75623.1231045,0.00014,2]
[329738999,1718639438741,-2293.59963333,0.00014,2]
[329739002,1718639438753,-1644.2883817,0.00014,2]
[329739004,1718639438764,-3186.29266696,0.00014,2]
[329739006,1718639438778,-3376.15847584,0.00014,2]
[329739008,1718639438790,-14182.0,0.00014,2]
[329739010,1718639438802,-4712.18710168,0.00014,2]
[329739012,1718639438813,-1513.35868036,0.00014,2]
[329739294,1718639441820,-778.64096614,0.00014,2]
[329739297,1718639441832,-17769.43979677,0.00014,2]
[329739299,1718639441844,-1906.93647508,0.00014,2]
[329739301,1718639441855,-6001.19151036,0.00014,2]
[329739303,1718639441867,-358.515,0.00014,2]
[329739305,1718639441879,-131247.47113927,0.00014,2]
[329739307,1718639441890,-14365.96528816,0.00014,2]
[329739309,1718639441902,-349.71176529,0.00014,2]
[329739312,1718639441913,-322.85018007,0.00014,2]
[329739329,1718639442387,-1092.24000014,0.00014,2]
[329739330,1718639442398,-2883.21999999,0.00014,2]
[329739331,1718639442409,-3364.15,0.00014,2]
[329739332,1718639442420,-46406.674974,0.00014,2]
[329739333,1718639442432,-843.15773648,0.00014,2]
[329739334,1718639442443,-362.572002,0.00014,2]
[329739335,1718639442455,-1937.26644223,0.00014,2]
[329739336,1718639442466,-1641.30252,0.00014,2]
[329739337,1718639442859,-884.040005,0.00014,2]
[329739338,1718639442870,-3017.256,0.00014,2]
[329739339,1718639442882,-3380.424834,0.00014,2]
[329739340,1718639442893,-303.27304,0.00014,2]
[329739341,1718639442905,-10617.72997806,0.00014,2]
[329739342,1718639442917,-3250.0,0.00014,2]
[329739356,1718639443425,-307.4,0.0001399,3]
[329739358,1718639443435,-6709.41507583,0.00014,2]
[329739361,1718639443446,-517.03487054,0.00014,2]
[329739363,1718639443458,-297.59077079,0.00014,2]
[329739364,1718639443469,-9204.44197426,0.00014,2]
[329739365,1718639443482,-8035.39495912,0.00014,2]
[329739366,1718639443493,-1365.5162,0.00014,2]
[329739367,1718639444084,-1229.69159329,0.00014,2]
[329739368,1718639444095,-1134.31999994,0.00014,2]
[329739369,1718639444108,-912.45,0.00014,2]
[329739370,1718639444120,-329.85960509,0.00014,2]
[329739371,1718639444131,-57322.14951469,0.00014,2]
[329739372,1718639444217,-1079.2862014,0.00014,2]
[329739373,1718639444228,-31221.60189139,0.00014,2]
[329739374,1718639444241,-1085.140985,0.00014,2]
[329739375,1718639444254,-506.363244,0.00014,2]
[329739556,1718639446757,-491.68765656,0.00014,2]
[329739559,1718639446769,-544.91435594,0.00014,2]
[329739561,1718639446781,-1284.1755862,0.00014,2]
[329739562,1718639446798,-760.9013701,0.00014,2]
[329739563,1718639446809,-1788.83831452,0.00014,2]
[329739564,1718639446820,-404.48230813,0.00014,2]
[329739565,1718639446833,-1753.85498398,0.00014,2]
[329739566,1718639446846,-485.64628292,0.00014,2]
[329739567,1718639446858,-536.415,0.00014,2]
[329739568,1718639446870,-1974.6460336,0.00014,2]
[329739569,1718639446883,-534.16021158,0.00014,2]
[329739570,1718639446894,-728.63556063,0.00014,2]
[329739571,1718639446906,-923.64272275,0.00014,2]
[329739572,1718639446917,-691.03903521,0.00014,2]
[329739573,1718639446929,-307.44854805,0.00014,2]
[329739574,1718639446941,-431.65240228,0.00014,2]
[329739575,1718639446952,-923.71145535,0.00014,2]
[329739576,1718639446964,-453.46218221,0.00014,2]
[329739577,1718639447308,-300.0,0.000136,4]
[329739579,1718639447318,-568.11076205,0.00014,2]
[329739582,1718639447329,-31386.1352046,0.00014,2]
[329739584,1718639447340,-3308.66806079,0.00014,2]
[329739586,1718639447351,-1938.41273028,0.00014,2]
[329739588,1718639447362,-3242.92302758,0.00014,2]
[329739590,1718639447373,-2401.02711241,0.00014,2]
[329739593,1718639447386,-541.19808586,0.00014,2]
[329739595,1718639447397,-5530.06801467,0.00014,2]
[329739714,1718639600129,367.0,0.000275,120]
[329739720,1718639728644,161.05,0.0001146,2]
[329739721,1718639768171,155.50808656,0.00010887,2]
[329739722,1718639770840,348.27605979,0.0001146,2]
[329739723,1718639774926,411.06881336,0.0001146,2]
[329739724,1718639779159,159359.25602005,0.0001146,2]
[329739726,1718639788801,428.17440367,0.0001146,2]
[329739727,1718639792836,232.08654548,0.0001146,2]
[329739738,1718640051497,161.66,0.00021589,30]
[329739749,1718640313125,162.85,0.00010326,2]
[329739751,1718640376674,466.83,0.00010944,2]
[329739768,1718640632960,-503.32943277,0.00012711,2]
[329739771,1718640632975,-988.65153361,0.00012711,2]
[329739774,1718640632985,-217.67398709,0.00012711,2]
[329739776,1718640632994,-1234.78400523,0.00012712,2]
[329739780,1718640633006,-160.26357377,0.00012712,2]
[329739781,1718640633015,-2196.89348564,0.00012713,2]
[329739783,1718640633025,-229.86502059,0.00012713,2]
[329739785,1718640633037,-299.33983788,0.00012713,2]
[329739786,1718640633049,-523.13614426,0.00012713,2]
[329739787,1718640633059,-532.14539917,0.00012714,2]
[329739788,1718640633068,-178.9,0.00012777,2]
[329739789,1718640633078,-171.9,0.00012807,2]
[329739790,1718640633087,-1000.0,0.00012808,2]
[329739791,1718640633096,-300.0,0.00012861,2]
[329739792,1718640633105,-250.0,0.00012862,2]
[329739793,1718640633116,-150.0,0.00013012,2]
[329739794,1718640633127,-250.0,0.00013033,2]
[329739795,1718640633136,-154.41,0.0001311,2]
[329739796,1718640633146,-5885.44,0.0001311,2]
[329739797,1718640633156,-574.84,0.0001311,2]
[329739798,1718640633165,-154.41,0.00013167,2]
[329739799,1718640633175,-466.83,0.00013208,2]
[329739800,1718640633184,-154.41,0.00013224,2]
[329739801,1718640633194,-154.41,0.00013281,2]
[329739802,1718640633203,-107883.2410383,0.00013294,2]
[329739803,1718640633212,-2014.28595391,0.00013296,2]
[329739804,1718640633228,-499.99,0.00013296,2]
[329739805,1718640633238,-501.95976371,0.00013298,2]
[329739806,1718640633248,-299.99,0.00013298,2]
[329739807,1718640633258,-981.86,0.00013298,2]
[329739808,1718640633267,-154.41,0.00013338,2]
[329739809,1718640633277,-154.41,0.00013395,2]
[329739810,1718640633286,-154.41,0.00013452,2]
[329739811,1718640633295,-154.41,0.00013509,2]
[329739812,1718640633304,-564.90339964,0.0001353,2]
[329739813,1718640633314,-430.48,0.0001353,2]
[329739814,1718640633323,-154.41,0.00013565,2]
[329739815,1718640633332,-154.41,0.00013622,2]
[329739816,1718640633341,-154.41,0.00013679,2]
[329739817,1718640633351,-200.0,0.00013699,2]
[329739818,1718640633360,-3585.79,0.00013699,2]
[329739819,1718640633370,-415.05,0.00013699,2]
[329739820,1718640633379,-172.01,0.00013699,2]
[329739821,1718640633388,-500.0,0.000137,5]
[329739822,1718640633397,-154.41,0.00013736,2]
[329739823,1718640633406,-150.99,0.00013748,2]
[329739824,1718640633416,-154.41,0.00013793,2]
[329739825,1718640633425,-1000.0,0.000138,5]
[329739826,1718640633434,-6552.8684,0.00013898,2]
[329739827,1718640633443,-5191.2482,0.00013899,2]
[329739828,1718640633452,-154.67833718,0.000139,2]
[329739829,1718640633461,-1500.0,0.000139,5]
[329739830,1718640633476,-169.75322856,0.000139,2]
[329739831,1718640633485,-321.78425915,0.000139,2]
[329739832,1718640633494,-564.90339963,0.000139,2]
[329739833,1718640633503,-290.12695926,0.00013922,2]
[329739835,1718640633514,-156.89940248,0.00013998,2]
[329739837,1718640633524,-481.00517144,0.00013998,2]
[329739838,1718640633534,-205.53087797,0.00013998,2]
[329739839,1718640633543,-169.6987412,0.00013998,2]
[329739840,1718640633552,-7124.40516495,0.00013998,2]
[329739841,1718640633562,-485.27579162,0.00013998,2]
[329739842,1718640633571,-1000.0,0.00013998,2]
[329739843,1718640633580,-155.37423626,0.00013998,2]
[329739844,1718640633589,-155.97820346,0.00013998,2]
[329739845,1718640633599,-155.5729,0.00013998,2]
[329739846,1718640633609,-155.29828979,0.00013998,2]
[329739847,1718640633619,-400.0,0.00013998,2]
[329739848,1718640633628,-2004.02984244,0.00013998,2]
[329739849,1718640633637,-3116.05358577,0.00013998,2]
[329739850,1718640633647,-1067.92836055,0.00013998,2]
[329739851,1718640633656,-654.33928765,0.00013998,2]
[329739852,1718640633665,-658.95366883,0.00013998,2]
[329739853,1718640633676,-293.44751052,0.00013998,2]
[329739854,1718640633685,-358.91103888,0.00013998,2]
[329739855,1718640633694,-247.01683963,0.00013998,2]
[329739856,1718640633704,-3100.39153479,0.00013998,2]
[329739857,1718640633714,-259.99573651,0.00013998,2]
[329739858,1718640633724,-209.15155743,0.00013998,2]
[329739859,1718640633734,-469.15504323,0.00013999,2]
[329739860,1718640633743,-2991.63756086,0.00013999,2]
[329739861,1718640633752,-4077.59336158,0.00013999,2]
[329739862,1718640633762,-35667.60985298,0.00014,2]
[329739863,1718640633774,-647652.92330006,0.00014,2]
[329739864,1718640633786,-582.30034196,0.00014,2]
[329739865,1718640633798,-272320.0890909,0.00014,2]
[329739866,1718640633809,-757.07841049,0.00014,2]
[329739867,1718640633821,-539.69020108,0.00014,2]
[329739868,1718640633832,-1125.57304693,0.00014,2]
[329739869,1718640633843,-2751.85958467,0.00014,2]
[329739870,1718640633854,-3244.55441955,0.00014,2]
[329739871,1718640633866,-349.70936002,0.00014,2]
[329739872,1718640633877,-1579.80960355,0.00014,2]
[329739873,1718640633888,-75475.57128115,0.00014,2]
[329739874,1718640633900,-254.68592052,0.00014,2]
[329739875,1718640633910,-1528.35103245,0.00014,2]
[329739887,1718640638532,-646.5329412,0.0001271,2]
[329739889,1718640638542,-386.98267617,0.00013293,2]
[329739891,1718640638552,-3017.90241875,0.00014,2]
[329739893,1718640638564,-709.08266212,0.00014,2]
[329739894,1718640638576,-386.46566936,0.00014,2]
[329739895,1718640638588,-700.81930549,0.00014,2]
[329739896,1718640638600,-798.6426083,0.00014,2]
[329739897,1718640638612,-54403.22453681,0.00014,2]
[329739898,1718640638623,-916.92440523,0.00014,2]
[329739899,1718640638635,-110655.84468333,0.00014,2]
[329739900,1718640638648,-201569.7505984,0.00014,2]
[329739901,1718640638660,-2686.0,0.00014,2]
[329739902,1718640638672,-11591.42915868,0.00014,2]
[329739903,1718640638683,-5213.2416444,0.00014,2]
[329739904,1718640638695,-11356.5,0.00014,2]
[329739905,1718640638706,-264.135,0.00014,2]
[329739907,1718640638975,-4835.69347157,0.00014,2]
[329739910,1718640638987,-1701.42867512,0.00014,2]
[329739914,1718640638998,-3249.71918793,0.00014,2]
[329739916,1718640639009,-2007.1187,0.00014,2]
[329739918,1718640639022,-365.01416679,0.00014,2]
[329739920,1718640639039,-766.45695671,0.00014,2]
[329739922,1718640639051,-315.59099931,0.00014,2]
[329739924,1718640639064,-4765.3586567,0.00014,2]
[329739926,1718640639078,-317.76866633,0.00014,2]
[329739928,1718640639091,-49579.12018321,0.00014,2]
[329739931,1718640639103,-515.28705452,0.00014,2]
[329739933,1718640639116,-358.9537836,0.00014,2]
[329739935,1718640639129,-114648.89383462,0.00014,2]
[329739936,1718640639141,-3531.1,0.00014,2]
[329740135,1718640641290,-271.205,0.00014,2]
[329740268,1718640642850,-124988.8510299,0.00014,2]
[329740269,1718640642862,-1182.9802283,0.00014,2]
[329740270,1718640642873,-1107.68259837,0.00014,2]
[329740271,1718640642885,-129849.99,0.00014,2]
[329740272,1718640642896,-453.0,0.00014,2]
[329740281,1718640642985,-3593.1149065,0.00014,2]
[329740284,1718640642997,-1059.23000018,0.00014,2]
[329740286,1718640643009,-350.805,0.00014,2]
[329740288,1718640643020,-176476.48836306,0.00014,2]
[329740359,1718640643660,-456.76319673,0.00014,2]
[329740365,1718640643672,-1488.95138755,0.00014,2]
[329740371,1718640643683,-3034.50388996,0.00014,2]
[329740377,1718640643696,-28770.68915484,0.00014,2]
[329740382,1718640643705,-481.88475,0.00014,2]
[329740387,1718640643715,-420.0,0.00014106,2]
[329740392,1718640643727,-172.79753886,0.00014274,2]
[329740398,1718640643737,-283.28,0.00014294,2]
[329740403,1718640643747,-167.32,0.00014408,2]
[329740408,1718640643757,-1000.0,0.00014409,2]
[329740410,1718640643766,-172.85,0.00014472,2]
[329740413,1718640643776,-481.88476,0.0001504,2]
[329740416,1718640643786,-466.83,0.00015472,2]
[329740419,1718640643796,-420.0,0.00015472,2]
[329740421,1718640643806,-574.84,0.0001585,2]
[329740424,1718640643816,-1000.0,0.0001601,2]
[329740427,1718640643825,-481.88476,0.0001629,2]
[329740429,1718640643834,-290.12695926,0.00016616,2]
[329740431,1718640643844,-8799.57163783,0.00016859,2]
[329740432,1718640643853,-481.88476,0.0001754,2]
[329740434,1718640643863,-1000.0,0.00017611,2]
[329740436,1718640643872,-466.83,0.00017736,2]
[329740438,1718640643881,-8799.57163783,0.00017808,2]
[329740440,1718640643891,-574.84,0.0001859,2]
[329740442,1718640643901,-8799.57163783,0.00018757,2]
[329740444,1718640643912,-481.88476,0.0001879,2]
[329740446,1718640643922,-173.93628071,0.00019178,2]
[329740448,1718640643931,-487.38920179,0.00019178,2]
[329740449,1718640643941,-415.05,0.00019178,2]
[329740450,1718640643951,-171.9,0.00019211,2]
[329740451,1718640643961,-1000.0,0.00019212,2]
[329740452,1718640643971,-290.12695926,0.0001931,2]
[329740453,1718640643981,-150.0,0.00019425,2]
[329740454,1718640643992,-8799.57163783,0.00019706,2]
[329740455,1718640644002,-466.83,0.00019999,2]
[329740456,1718640644012,-1797.62107832,0.0002,2]
[329740457,1718640644023,-88.76849905,0.0002,2]
[329740458,1718640644038,-66.23150095,0.0002,2]
[329740459,1718640644052,-155.0,0.0002,2]
[329740460,1718640644062,-187.8134191,0.0002,2]
[329740461,1718640644072,-155.0,0.0002,2]
[329740462,1718640644082,-217.97613301,0.0002,2]
[329740463,1718640644093,-176.37381487,0.0002,2]
[329740464,1718640644103,-6264.79937817,0.0002,2]
[329740465,1718640644115,-481.88475,0.0002004,2]
[329740466,1718640644127,-226.83513534,0.000201,2]
[329740467,1718640644136,-2427.0,0.000206,3]
[329740468,1718640644146,-746.0,0.000206,3]
[329740469,1718640644156,-8799.57163783,0.00020655,2]
[329740470,1718640644166,-23573.61731794,0.00021,2]
[329740471,1718640644176,-11746.0,0.000213,5]
[329740472,1718640644187,-257.43076521,0.00021589,2]
[329740473,1718640644197,-300.05767079,0.00021589,2]
[329740474,1718640644206,-8799.57163783,0.00021604,2]
[329740475,1718640644216,-301.58,0.00021918,2]
[329740476,1718640644229,-250.0,0.00021918,2]
[329740477,1718640644247,-290.12695926,0.00022004,2]
[329740478,1718640644268,-466.83,0.00022263,2]
[329740479,1718640644287,-8799.57163783,0.00022552,2]
[329740480,1718640644307,-7006.36,0.000228,2]
[329740481,1718640644330,-1390.52,0.000228,2]
[329740482,1718640644349,-2243.89729623,0.000229,2]
[329740483,1718640644368,-208.65807696,0.000229,2]
[329740484,1718640644383,-2000.0,0.000229,8]
[329740485,1718640644401,-73542.88075399,0.00023,13]
[329740486,1718640644420,-388216.76077036,0.00023,2]
[329740487,1718640644445,-272.57462497,0.00023,2]
[329740488,1718640644462,-752.79796392,0.00023,2]
[329740489,1718640644488,-7023.35917763,0.00023,2]
[329740544,1718640645077,-273.36204567,0.00023,2]
[329740729,1718640646977,-2194.06452034,0.00013999,2]
[329740731,1718640646987,-159560.44540857,0.00023,2]
[329740733,1718640646999,-465.19651332,0.00023,2]
[329740737,1718640647012,-896.01,0.00023,2]
[329740740,1718640647024,-454.68489641,0.00023,2]
[329740742,1718640647040,-673.22,0.00023,2]
[329740744,1718640647052,-2500.62087034,0.00023,2]
[329740746,1718640647063,-1121.14366167,0.00023,2]
[329740749,1718640647075,-795.63106483,0.00023,2]
[329740800,1718640647579,-382.84633833,0.00023,2]
[329740802,1718640647591,-34879.9999999,0.00023,2]
[329740804,1718640647603,-134000.0,0.00023,2]
[329740806,1718640647614,-319.50316463,0.00023,2]
[329740808,1718640647626,-5263.08162219,0.00023,2]
[329740811,1718640647638,-255.26732693,0.00023,2]
[329740813,1718640647650,-1014.8698506,0.00023,2]
[329740815,1718640647661,-66865.37496421,0.00023,2]
[329740848,1718640658862,78708.72538451,0.00010944,2]
[329740853,1718640676508,161.66,0.00023748,30]
[329740868,1718641113198,629.88,0.00010959,2]
[329740869,1718641217432,410.98131787,0.00010959,2]
[329740870,1718641235528,377.57367677,0.00010959,2]
[329740871,1718641443529,161.66,0.00021589,30]
[329740902,1718641833683,-500.0,0.00012468,2]
[329740921,1718641834079,-10.47574682,0.00012468,2]
[329740922,1718641834096,-465.65120639,0.00012468,2]
[329740923,1718641834111,-92.75905992,0.00012468,2]
[329740924,1718641834121,-415.23094008,0.00012469,2]
[329740925,1718641834133,-108.32254626,0.00012469,2]
[329740926,1718641834144,-5597.14790487,0.0001247,2]
[329740927,1718641834157,-1372.44383314,0.0001247,2]
[329740928,1718641834167,-646.5329412,0.00012569,2]
[329740929,1718641834177,-482.51782929,0.0001257,2]
[329740930,1718641834188,-300.0,0.0001257,2]
[329740931,1718641834197,-186.81772801,0.00013002,2]
[329740932,1718641834207,-477.84818033,0.00013007,2]
[329740933,1718641834216,-363.6125123,0.0001301,2]
[329740934,1718641834226,-508.98507123,0.0001301,2]
[329740935,1718641834235,-71136.81318565,0.00013012,2]
[329740936,1718641834247,-1192.8949193,0.00013012,2]
[329740937,1718641834258,-330142.32517244,0.00013012,2]
[329740938,1718641834269,-629.07151827,0.00013012,2]
[329740939,1718641834281,-1524.9999997,0.00013012,2]
[329740940,1718641834292,-850.40212826,0.00013012,2]
[329740941,1718641834303,-1100.56928573,0.00013012,2]
[329740942,1718641834314,-317.62305723,0.00013012,2]
[329740943,1718641834325,-2172.51126674,0.00013012,2]
[329740944,1718641834342,-1344.78568796,0.00013012,2]
[329740945,1718641834353,-647.77,0.00013012,2]
[329740946,1718641834367,-208339.58245372,0.00013012,2]
[329740947,1718641834377,-177.92,0.00013012,2]
[329740948,1718641834387,-1175.44933757,0.0001353,2]
[329740949,1718641834397,-1175.44933757,0.0001353,2]
[329740950,1718641834407,-420.0,0.00013791,2]
[329740951,1718641834417,-1390.87636562,0.00013999,2]
[329740952,1718641834426,-399.87,0.00016977,2]
[329740953,1718641834438,-499.99,0.00017534,2]
[329740954,1718641834453,-250.0,0.00017609,2]
[329740955,1718641834463,-150.0,0.00018304,2]
[329740956,1718641834473,-5771.69,0.00018377,2]
[329740957,1718641834483,-250.0,0.00018441,2]
[329740958,1718641834493,-795.67,0.00018622,2]
[329740959,1718641834503,-760.63,0.00018741,2]
[329740960,1718641834512,-500.0,0.00018787,2]
[329740961,1718641834526,-23890.0,0.00018887,2]
[329740963,1718641834536,-254.9,0.00018895,2]
[329740965,1718641834547,-297.17,0.00018895,2]
[329740967,1718641834556,-235.19,0.00018895,2]
[329740969,1718641834566,-399.87,0.00019241,2]
[329740971,1718641834577,-1000.0,0.00019599,2]
[329740973,1718641834591,-14081.0,0.00019985,2]
[329740975,1718641834601,-364.60959321,0.0002,2]
[329740976,1718641834610,-226.83513534,0.000201,2]
[329740977,1718641834621,-2427.0,0.000203,3]
[329740978,1718641834630,-7809.0,0.000205,3]
[329740979,1718641834640,-11746.0,0.000211,5]
[329740980,1718641834649,-760.63,0.0002148,2]
[329740981,1718641834659,-400.0,0.000215,7]
[329740982,1718641834668,-399.87,0.00021505,2]
[329740983,1718641834678,-900.0,0.000216,7]
[329740984,1718641834688,-1400.0,0.000217,7]
[329740985,1718641834698,-1900.0,0.000218,7]
[329740986,1718641834708,-193.41797284,0.00021817,2]
[329740987,1718641834717,-226.6,0.00021834,2]
[329740988,1718641834727,-2400.0,0.000219,7]
[329740989,1718641834737,-176.37381487,0.00021917,2]
[329740990,1718641834746,-217.97613301,0.00021917,2]
[329740991,1718641834756,-6264.79937817,0.00021917,2]
[329740992,1718641834765,-500.0,0.00021917,2]
[329740993,1718641834775,-500.0,0.00021917,2]
[329740994,1718641834785,-500.0,0.00021917,2]
[329740995,1718641834796,-500.0,0.00021917,2]
[329740996,1718641834806,-525.84388486,0.00021917,2]
[329740997,1718641834815,-500.0,0.00021917,2]
[329740998,1718641834826,-502.28791874,0.00021917,2]
[329740999,1718641834844,-238.38339442,0.00021917,2]
[329741000,1718641834856,-500.0,0.00021917,2]
[329741001,1718641834867,-500.0,0.00021917,2]
[329741002,1718641834876,-218.04611824,0.00021917,2]
[329741003,1718641834887,-502.07625838,0.00021917,2]
[329741004,1718641834896,-500.0,0.00021917,2]
[329741005,1718641834906,-504.6479347,0.00021917,2]
[329741006,1718641834915,-594.39475391,0.00021917,2]
[329741007,1718641834925,-500.0,0.00021917,2]
[329741008,1718641834934,-500.0,0.00021917,2]
[329741009,1718641834945,-500.0,0.00021917,2]
[329741010,1718641834954,-500.0,0.00021917,2]
[329741011,1718641834965,-500.0,0.00021917,2]